bitfinex/quotes_SOLUSD_20240725
["timestamp","ask_amount","ask_price","bid_price","bid_amount"]
[1721874675929,0.57823523,172.95,172.94,1.33760437]
[1721874676828,0.7715902,173.05,172.94,1.33760437]
[1721874677127,0.7715902,173.05,172.94,2.49355425]
[1721874677330,0.7715902,173.05,172.94,1.33760437]
[1721874677540,0.7715902,173.05,172.94,2.49378607]
[1721874678447,0.7715902,173.05,172.94,22.49378607]
[1721874678652,0.7715902,173.05,172.95,45.0]
[1721874678827,0.7715902,173.05,172.96,1.3374497]
[1721874679031,0.7715902,173.05,172.96,2.49331792]
[1721874679934,0.7715902,173.05,172.97,20.0]
[1721874680132,0.7715902,173.05,172.98,47.49280954]
[1721874680332,0.7715902,173.05,172.99,46.33721776]
[1721874680535,0.7715902,173.05,172.95,45.0]
[1721874680536,0.7715902,173.05,173.0,1.33714046]
[1721874680961,1.44533494,173.04,173.0,1.33714046]
[1721874681267,1.44511968,173.04,173.0,1.33714046]
[1721874681439,5.7797,173.02,173.0,1.33714046]
[1721874681760,5.7811,172.98,172.84,16.3034]
[1721874681959,7.22712616,172.97,172.85,2.4948747]
[1721874682132,1.44570425,173.01,172.85,2.4948747]
[1721874682333,1.44570425,173.01,172.86,1.33822342]
[1721874682845,1.44570425,173.01,172.86,2.49479411]
[1721874683035,7.22590425,173.01,172.86,2.49479411]
[1721874683253,5.7803,173.0,172.86,2.49479411]
[1721874683427,1.4455731,172.99,172.86,1.33822342]
[1721874683626,1.44569039,172.98,172.86,2.49477573]
[1721874683832,385.0,173.02,172.87,20.0]
[1721874684046,385.0,173.02,172.88,1.15611976]
[1721874684251,35.96,173.07,172.89,20.0]
[1721874684438,2.21666765,173.05,172.9,1.15606196]
[1721874684645,0.7715902,173.05,172.9,1.15606196]
[1721874684855,0.7715902,173.05,172.9,46.15606196]
[1721874685058,0.7715902,173.05,172.91,20.0]
[1721874685351,0.7715902,173.05,172.93,20.0]
[1721874685558,0.7715902,173.05,172.94,46.15589029]
[1721874685733,6.5503902,173.05,172.94,45.0]
[1721874685933,7.22424194,173.04,172.94,45.0]
[1721874686163,0.7715902,173.05,172.95,1.15617253]
[1721874686454,0.7715902,173.05,172.96,1.15603507]
[1721874686653,6.5502902,173.05,172.94,45.0]
[1721874686954,1.44524317,173.04,172.88,1.15622092]
[1721874687164,5.7808,172.99,172.95,1.33752703]
[1721874687345,1.44555878,172.98,172.95,1.33752703]
[1721874687733,5.7813,172.97,172.95,1.33752703]
[1721874687958,1.44555878,172.98,172.95,1.33752703]
[1721874688344,1.44564279,173.0,172.95,1.33752703]
[1721874688546,385.0,173.02,172.95,1.33752703]
[1721874689259,390.7797,173.02,172.95,1.33752703]
[1721874689558,385.0,173.02,172.95,1.33752703]
[1721874689962,0.7715902,173.05,172.95,1.33752703]
[1721874690553,0.7715902,173.05,172.96,1.1559322]
[1721874690766,0.7715902,173.05,172.97,1.33737238]
[1721874691266,0.7715902,173.05,172.98,1.15596993]
[1721874691438,0.7715902,173.05,172.99,1.33721776]
[1721874691645,0.7715902,173.05,173.0,1.15551038]
[1721874691844,0.7715902,173.05,173.01,1.33706318]
[1721874692543,0.7715902,173.05,173.02,1.15554228]
[1721874692744,0.7715902,173.05,173.03,1.33690863]
[1721874693150,6.01735246,173.16,173.04,1.15553762]
[1721874693348,6.01735246,173.16,173.05,2.49203843]
[1721874693545,6.01735246,173.16,173.06,1.33667688]
[1721874693755,6.01735246,173.16,173.07,1.15508999]
[1721874693944,6.01735246,173.16,173.08,1.33652242]
[1721874694141,6.01735246,173.16,173.08,2.49161241]
[1721874694541,6.01735246,173.16,173.08,1.33652242]
[1721874694848,1.44386347,173.2,173.08,1.33652242]
[1721874695050,385.0,173.21,173.08,2.49161294]
[1721874695657,1.44365565,173.2,173.08,1.33652242]
[1721874695958,385.0,173.21,173.08,2.4915998]
[1721874696164,385.0,173.21,173.08,2.49162872]
[1721874698369,0.7715902,173.22,173.09,42.8723]
[1721874698573,0.7715902,173.22,173.1,47.49112082]
[1721874698775,0.7715902,173.22,173.11,2.49110986]
[1721874698946,0.7715902,173.22,173.12,1.33621361]
[1721874699149,6.5446902,173.22,173.12,1.33621361]
[1721874699466,5.7741,173.19,173.12,1.33621361]
[1721874699761,1.44389105,173.2,173.12,1.33621361]
[1721874699964,0.7715902,173.22,173.12,1.33621361]
[1721874700968,0.7715902,173.22,173.13,1.15488537]
[1721874701294,0.7715902,173.22,173.14,1.33605926]
[1721874701464,0.7715902,173.22,173.15,1.15470612]
[1721874701953,0.7715902,173.22,173.16,1.33590495]
[1721874702153,0.7715902,173.22,173.17,1.15457405]
[1721874702349,0.7715902,173.22,173.18,1.33575067]
[1721874702566,0.7715902,173.22,173.18,2.49032609]
[1721874702749,0.7715902,173.22,173.19,1.33567354]
[1721874702951,0.7715902,173.22,173.2,1.15444774]
[1721874703179,0.7715902,173.22,173.21,1.33551931]
[1721874703669,385.0,173.32,173.21,1.33551931]
[1721874703843,259.5,173.36,173.21,1.33551931]
[1721874704048,37.40277714,173.35,173.21,1.33551931]
[1721874704479,1.44277714,173.35,173.21,1.33551931]
[1721874704677,1.44277714,173.35,173.21,46.33551931]
[1721874705557,5.769,173.34,173.21,46.33551931]
[1721874705757,1.44288485,173.33,173.21,46.33551931]
[1721874706076,1.44288485,173.32,173.21,46.33551931]
[1721874706560,5.77,173.31,173.21,46.33551931]
[1721874706762,1.44288485,173.32,173.21,46.33551931]
[1721874707071,265.51431611,173.36,173.21,54.14812603]
[1721874707248,1.44268067,173.35,173.21,52.99381931]
[1721874707647,5.7694,173.33,173.21,52.99381931]
[1721874707867,1.4427949,173.32,173.21,52.99381931]
[1721874708173,1.4427949,173.32,173.21,1.33551931]
[1721874708371,5.7721,173.25,173.21,1.33551931]
[1721874708577,17.35,173.3,173.21,1.33551931]
[1721874708779,5.7727,173.23,173.21,1.33551931]
[1721874709246,1.44354646,173.22,173.21,1.33551931]
[1721874709445,1.44354646,173.22,173.09,6.1632]
[1721874709656,406.44388461,173.25,173.1,2.49147569]
[1721874709876,385.0,173.25,173.11,1.15484329]
[1721874710053,1.44357887,173.24,173.12,1.33621361]
[1721874710262,385.0,173.25,173.13,1.1547971]
[1721874710458,385.0,173.25,173.14,1.33605926]
[1721874710863,385.0,173.25,173.15,1.15463263]
[1721874711063,385.0,173.25,173.16,1.33590495]
[1721874711262,23.5651,173.33,173.16,66.33590495]
[1721874711547,1.44310974,173.32,173.16,46.33590495]
[1721874711752,5.7725,173.24,173.16,46.33590495]
[1721874711976,7.21614916,173.23,173.16,46.33590495]
[1721874712164,5.7727,173.23,173.16,46.33590495]
[1721874712481,385.0,173.31,173.16,46.33590495]
[1721874712482,1.44349544,173.3,173.16,46.33590495]
[1721874712647,7.21389544,173.3,173.16,46.33590495]
[1721874712847,1.4431538,173.29,173.16,46.33590495]
[1721874713072,1.4431538,173.29,173.16,1.33590495]
[1721874713275,5.7722,173.25,173.16,1.33590495]
[1721874713473,21.4431538,173.29,173.16,1.33590495]
[1721874713658,5.7713,173.27,173.16,1.33590495]
[1721874713865,21.4431538,173.29,173.16,1.33590495]
[1721874714061,385.0,173.31,173.16,1.33590495]
[1721874714062,385.0,173.31,173.17,1.15454947]
[1721874714277,6.2151,173.33,173.18,1.15444147]
[1721874714478,1.44286407,173.32,173.17,1.15429125]
[1721874714676,21.44286407,173.32,173.16,2.49029634]
[1721874714875,21.44286407,173.32,173.16,1.33590495]
[1721874715192,5.7731,173.22,173.16,1.33590495]
[1721874715357,5.7724,173.24,173.16,1.33590495]
[1721874715563,5.7723,173.24,173.16,1.33590495]
[1721874715769,1.44341485,173.23,173.16,1.33590495]
[1721874716073,0.57750058,173.17,173.16,1.33590495]
[1721874718378,6.02104572,173.26,173.16,1.33590495]
[1721874718570,5.7715,173.27,173.16,1.33590495]
[1721874718758,5.7715,173.27,173.17,1.15451504]
[1721874718959,5.7715,173.27,173.18,1.15452366]
[1721874719262,1.44315458,173.26,173.16,1.33590495]
[1721874719458,385.0,173.32,173.16,2.49055384]
[1721874719668,6.01987266,173.29,173.16,2.49055384]
[1721874719888,7.46309498,173.29,173.16,2.49055384]
[1721874720057,1.44322232,173.29,173.16,1.33590495]
[1721874720264,20.0,173.28,173.16,1.33590495]
[1721874720579,15.87182338,173.27,173.16,1.33590495]
[1721874720781,5.7728,173.23,173.16,1.33590495]
[1721874721000,5.7722,173.25,173.16,1.33590495]
[1721874721194,5.7714,173.27,173.17,1.15481616]
[1721874721478,1.44323056,173.26,173.16,1.33590495]
[1721874721865,5.7737,173.2,173.16,1.33590495]
[1721874722182,1.44359185,173.19,173.16,1.33590495]
[1721874722382,385.0,173.3,173.16,1.33590495]
[1721874722383,17.35,173.17,173.16,1.33590495]
[1721874722581,17.35,173.15,173.01,16.345]
[1721874722842,17.35,173.13,173.01,16.345]
[1721874722959,37.35,173.12,172.93,22.813]
[1721874723293,385.0,173.12,172.98,20.0]
[1721874723876,385.0,173.12,173.01,20.0]
[1721874724193,5.7751,173.16,173.01,20.0]
[1721874724385,5.7754,173.15,172.99,20.0]
[1721874724562,1.44417375,173.19,173.01,20.0]
[1721874724765,21.44417375,173.19,173.02,1.15524742]
[1721874725090,21.44417375,173.19,172.96,20.0]
[1721874725091,5.7764,173.12,172.96,20.0]
[1721874725298,5.7764,173.12,172.97,21.1554809]
[1721874725483,1.4444199,173.18,173.0,20.0]
[1721874725786,21.44414686,173.19,173.03,22.5762]
[1721874725991,1.44414686,173.17,173.03,22.5762]
[1721874726168,5.7768,173.11,173.03,22.5762]
[1721874726369,5.7771,173.1,173.03,22.5762]
[1721874726577,5.7777,173.08,172.98,6.203]
[1721874726779,5.7781,173.07,172.98,6.203]
[1721874727103,5.7775,173.09,172.98,6.203]
[1721874727306,1.44477174,173.14,172.99,1.15581491]
[1721874727510,5.7764,173.12,172.99,1.15581491]
[1721874727681,1.44454666,173.15,172.99,1.15581491]
[1721874727877,1.44441856,173.14,172.98,6.203]
[1721874728078,21.44441856,173.14,172.98,6.203]
[1721874728297,14.4351,173.19,172.99,1.15574786]
[1721874728500,406.44441615,173.18,172.99,1.15574786]
[1721874728702,1.44441615,173.17,172.99,1.15574786]
[1721874728887,5.7757,173.14,172.99,41.15574786]
[1721874729292,5.776,173.13,173.0,45.0]
[1721874729484,5.776,173.13,173.01,1.15547298]
[1721874729683,5.7759,173.14,173.02,1.15547466]
[1721874729883,1.44441615,173.17,173.02,1.15547466]
[1721874729884,1.44423139,173.17,173.02,1.15547466]
[1721874730101,1.44423139,173.17,173.02,46.15547466]
[1721874730495,5.7755,173.15,173.02,46.15547466]
[1721874730703,7.21981888,173.14,173.02,45.0]
[1721874730917,5.776,173.13,173.02,45.0]
[1721874731089,5.7764,173.12,173.02,45.0]
[1721874731288,5.7761,173.13,173.02,45.0]
[1721874731597,391.02216697,173.18,172.99,1.1554777]
[1721874731598,408.37216697,173.18,172.99,1.1554777]
[1721874731908,5.7777,173.08,172.98,6.203]
[1721874732303,1.44474058,173.14,172.99,0.59902968]
[1721874732304,5.7767,173.11,172.99,0.59902968]
[1721874732610,1.44474058,173.14,172.99,1.15582116]
[1721874732611,5.777,173.1,172.99,1.15582116]
[1721874732783,5.7766,173.12,172.99,1.15569962]
[1721874733297,20.0,173.17,172.99,21.15569962]
[1721874733502,17.35,173.16,172.98,7.3584887]
[1721874733700,38.79463999,173.15,172.98,6.203]
[1721874733908,5.7773,173.09,172.99,45.0]
[1721874734085,5.7768,173.11,172.99,45.0]
[1721874734286,5.777,173.1,172.99,45.0]
[1721874734487,1.4446209,173.14,172.99,45.0]
[1721874735090,5.7761,173.13,172.99,46.15569499]
[1721874735388,1.44440221,173.12,172.99,46.15569499]
[1721874735604,1.44440221,173.12,172.99,45.0]
[1721874735912,5.7773,173.09,172.99,45.0]
[1721874736112,1.44440221,173.12,172.99,45.0]
[1721874736293,5.7774,173.09,172.99,45.0]
[1721874737099,5.778,173.07,172.98,6.203]
[1721874737291,1.44485291,173.07,172.98,6.203]
[1721874737486,1.44485291,173.13,172.99,1.15588233]
[1721874738108,1.44485291,173.13,172.98,7.35864639]
[1721874738304,5.7767,173.11,172.99,1.1556411]
[1721874738705,5.7767,173.11,172.99,46.1556411]
[1721874739087,5.73130326,173.2,172.99,66.1556411]
[1721874739289,5.774,173.19,173.02,20.0]
[1721874739489,259.5,173.21,173.02,20.0]
[1721874739490,1.44391716,173.17,173.03,66.15513373]
[1721874739813,5.7743,173.18,173.03,66.15513373]
[1721874740009,7.21832294,173.18,173.03,66.15513373]
[1721874740597,7.21832294,173.18,173.04,20.0]
[1721874740796,5.7743,173.18,173.05,46.15516026]
[1721874741102,11.79549971,173.2,173.06,16.2224]
[1721874741306,259.5,173.21,173.07,66.15503335]
[1721874741711,29.27,173.23,173.06,16.2224]
[1721874741712,46.62,173.17,173.06,16.2224]
[1721874742184,5.777,173.1,173.06,16.2224]
[1721874742387,5.7773,173.09,173.0,15.2023]
[1721874742587,5.7773,173.09,172.93,20.0]
[1721874742588,1.44465849,173.08,172.93,6.6127]
[1721874742796,1.44501718,173.07,172.93,21.815]
[1721874743210,5.7782,173.07,172.93,22.97106785]
[1721874743411,35.0476,173.09,172.93,22.97106785]
[1721874743610,385.0,173.11,172.93,22.97106785]
[1721874743611,1.4448767,173.08,172.93,42.97106785]
[1721874743813,1.4448767,173.08,172.93,22.97106785]
[1721874743992,1.4448767,173.08,172.93,21.815]
[1721874744198,5.78,173.01,172.93,21.815]
[1721874744394,5.7807,172.99,172.93,21.815]
[1721874744605,37.35,173.08,172.93,21.815]
[1721874744606,31.7971,173.05,172.93,21.815]
[1721874744813,21.44546529,173.04,172.93,15.2023]
[1721874745006,5.7804,173.0,172.93,15.2023]
[1721874745333,5.7801,173.01,172.93,15.2023]
[1721874745613,5.7815,172.97,172.88,6.1276]
[1721874745818,14.4496,173.02,172.88,6.1276]
[1721874745819,5.7809,172.99,172.88,6.1276]
[1721874745993,1.44562372,173.01,172.88,6.1276]
[1721874745994,385.0,173.03,172.89,1.15649897]
[1721874746192,385.0,173.03,172.9,1.15625057]
[1721874746803,5.78,173.01,172.9,1.15625057]
[1721874747612,385.0,173.03,172.9,1.15625057]
[1721874748219,390.7794,173.03,172.9,1.15625057]
[1721874748407,5.7797,173.02,172.9,1.15625057]
[1721874748819,5.78,173.01,172.9,1.15625057]
[1721874749003,5.7804,173.0,172.89,46.15618055]
[1721874749402,1.44532581,173.02,172.9,1.15626064]
[1721874749897,5.7803,173.0,172.89,46.15625783]
[1721874750102,1.44532865,173.06,172.9,1.15626292]
[1721874750418,21.44532865,173.06,172.9,1.15626292]
[1721874750601,5.7797,173.02,172.9,1.15626292]
[1721874750801,5.7803,173.0,172.89,45.0]
[1721874751002,5.781,172.98,172.88,6.1276]
[1721874751217,1.44547284,173.04,172.88,6.1276]
[1721874751425,5.781,172.98,172.88,6.1276]
[1721874751618,5.7806,173.0,172.88,6.1276]
[1721874751916,7.2262109,172.99,172.88,6.1276]
[1721874752124,1.44550798,173.03,172.88,6.1276]
[1721874752312,38.79550798,173.03,172.88,6.1276]
[1721874752512,17.35,173.01,172.88,6.1276]
[1721874752842,5.782,172.96,172.87,16.2925]
[1721874753118,5.7823,172.94,172.87,16.2925]
[1721874753809,7.22861408,172.93,172.87,16.2925]
[1721874754105,21.44602914,172.98,172.87,16.2925]
[1721874754528,1.44602914,172.98,172.87,16.2925]
[1721874754714,5.782,172.96,172.87,16.2925]
[1721874754920,385.0,172.99,172.87,16.2925]
[1721874755100,1.44579915,172.98,172.87,16.2925]
[1721874755299,385.0,172.99,172.87,17.44905598]
[1721874755300,390.7809,172.99,172.87,17.44905598]
[1721874755500,385.0,172.99,172.88,45.0]
[1721874755700,385.0,172.99,172.89,1.15628844]
[1721874755910,385.0,172.99,172.9,1.15626799]
[1721874756308,5.7788,173.05,172.9,1.15626799]
[1721874756519,5.7788,173.05,172.91,6.1373]
[1721874756725,5.779,173.04,172.92,46.15605361]
[1721874757111,5.7794,173.03,172.92,46.15605361]
[1721874757316,1.44508475,173.03,172.92,45.0]
[1721874757518,31.7946,173.08,172.92,45.0]
[1721874757519,21.44523403,173.07,172.92,45.0]
[1721874757706,5.7804,173.0,172.92,45.0]
[1721874758026,1.44534728,172.99,172.92,45.0]
[1721874758512,5.7791,173.04,172.92,46.15628202]
[1721874758702,5.7791,173.04,172.93,1.15628202]
[1721874758906,5.7794,173.03,172.92,46.15613293]
[1721874759204,1.44536506,173.06,172.92,46.15613293]
[1721874759413,21.44516499,173.07,172.93,1.15613199]
[1721874759606,5.7793,173.04,172.93,1.15613199]
[1721874759806,5.7793,173.03,172.93,1.15613199]
[1721874760024,20.0,173.07,172.93,1.15613199]
[1721874760225,21.44495834,173.08,172.93,1.15613199]
[1721874760725,5.7783,173.07,172.93,21.15613199]
[1721874761030,5.7786,173.05,172.94,45.0]
[1721874761211,1.44510005,173.07,172.94,45.0]
[1721874761411,5.7793,173.03,172.94,45.0]
[1721874762104,1.44510005,173.07,172.94,45.0]
[1721874762730,5.7788,173.05,172.95,1.15606542]
[1721874763228,1.33270709,173.04,172.95,1.15606542]
[1721874764626,7.11170709,173.04,172.94,45.0]
[1721874764831,1.33270709,173.04,172.94,45.0]
[1721874765127,1.33270709,173.04,172.91,6.1373]
[1721874765128,2.77781637,173.04,172.91,6.1373]
[1721874765520,5.7808,172.99,172.91,6.1373]
[1721874765834,2.77781637,173.04,172.87,16.2925]
[1721874765835,1.44566011,172.98,172.87,16.2925]
[1721874766040,5.7841,172.89,172.87,16.2925]
[1721874766336,1.33270709,172.88,172.8,22.2845]
[1721874766507,2.77902619,172.88,172.8,22.2845]
[1721874766712,1.44659198,172.87,172.8,22.2845]
[1721874766929,1.33270709,172.86,172.8,22.2845]
[1721874767715,2.7791647,172.86,172.8,22.2845]
[1721874767933,1.33270709,172.86,172.8,22.2845]
[1721874768440,1.44638853,172.85,172.8,15.8962]
[1721874768641,1.33270709,172.84,172.8,15.8962]
[1721874769741,385.0,172.96,172.81,1.15700847]
[1721874769949,5.7824,172.94,172.81,1.15700847]
[1721874770117,5.7824,172.94,172.81,46.15700847]
[1721874770313,1.4458961,172.98,172.81,66.15700847]
[1721874770518,1.4458002,172.98,172.81,66.15700847]
[1721874770950,414.29,173.0,172.84,20.0]
[1721874771154,266.1179,173.01,172.81,46.15700847]
[1721874771155,259.5,173.01,172.87,20.0]
[1721874771465,259.5,173.01,172.9,16.2758]
[1721874771617,385.0,173.06,172.91,2.49399125]
[1721874771819,29.29,173.07,172.92,1.33775908]
[1721874772020,259.5,173.1,172.93,1.15599002]
[1721874772252,259.5,173.1,172.94,1.33760437]
[1721874772420,5.7785,173.06,172.95,1.15598823]
[1721874772621,5.7787,173.05,172.96,2.49344886]
[1721874772852,1.44499895,173.09,172.97,1.33737238]
[1721874773034,259.5,173.1,172.97,1.33737238]
[1721874773035,5.7778,173.08,172.98,1.15589084]
[1721874773230,259.5,173.1,172.99,1.33721776]
[1721874773535,1.44486672,173.09,172.99,1.33721776]
[1721874773729,5.7797,173.02,172.93,45.0]
[1721874773940,5.7792,173.04,172.94,1.33760437]
[1721874774242,1.4451836,173.05,172.94,1.33760437]
[1721874774629,7.2238836,173.05,172.94,1.33760437]
[1721874774829,1.4451836,173.05,172.94,1.33760437]
[1721874775223,5.779,173.04,172.94,1.33760437]
[1721874775424,7.22409166,173.04,172.94,1.33760437]
[1721874775836,0.57823523,172.95,172.94,1.33760437]
[1721874776120,5.7795,173.03,172.94,1.33760437]
[1721874776322,5.7797,173.02,172.94,1.33760437]
[1721874776527,5.7793,173.04,172.94,1.33760437]
[1721874776727,20.0,173.06,172.94,1.33760437]
[1721874777030,1.44508928,173.05,172.94,1.33760437]
[1721874777353,5.7789,173.05,172.95,1.15616011]
[1721874777539,5.7776,173.09,172.96,2.49333395]
[1721874777737,20.0,173.08,172.97,1.33737238]
[1721874777946,25.7777,173.08,172.98,1.1558921]
[1721874778144,259.5,173.1,172.99,2.49310986]
[1721874778329,414.29,173.11,173.0,1.33714046]
[1721874778530,414.29,173.11,173.01,1.15581217]
[1721874779026,414.29,173.11,173.0,2.49295263]
[1721874779453,5.778,173.07,173.0,1.33714046]
[1721874779644,5.7783,173.06,173.0,1.33714046]
[1721874780157,5.7779,173.08,173.0,1.33714046]
[1721874780653,1.44473457,173.1,173.0,1.33714046]
[1721874780854,5.778,173.07,173.0,1.33714046]
[1721874781452,5.7784,173.06,173.0,1.33714046]
[1721874781655,1.444968,173.09,173.0,1.33714046]
[1721874781845,5.7787,173.05,173.0,1.33714046]
[1721874782151,5.7783,173.07,173.0,1.33714046]
[1721874782335,21.4448352,173.1,173.0,1.33714046]
[1721874782535,25.777,173.1,173.01,1.15586816]
[1721874782870,5.7777,173.08,173.0,1.33714046]
[1721874783156,20.0,173.1,173.0,1.33714046]
[1721874783558,30.73479216,173.11,173.0,1.33714046]
[1721874784254,5.7776,173.09,173.0,1.33714046]
[1721874784648,7.22248581,173.08,173.0,1.33714046]
[1721874784836,20.0,173.23,173.0,1.33714046]
[1721874784837,1.44483828,173.07,173.01,15.1598]
[1721874785030,1.44460806,173.17,173.02,47.49267235]
[1721874785232,35.77,173.16,173.03,1.33690863]
[1721874785434,1.44465372,173.15,173.03,1.33690863]
[1721874785629,35.77,173.16,173.03,1.33690863]
[1721874785630,5.7775,173.09,173.03,1.33690863]
[1721874785833,1.44476292,173.08,173.03,1.33690863]
[1721874786034,1.44496456,173.07,172.97,6.1757]
[1721874786749,37.21520431,173.08,172.97,7.51307238]
[1721874786949,25.7774,173.09,172.98,1.33729506]
[1721874787253,53.12,173.12,172.98,1.33729506]
[1721874787254,1.44487492,173.08,172.98,1.33729506]
[1721874787434,1.44488545,173.11,172.98,1.33729506]
[1721874787635,20.0,173.11,172.98,46.33729506]
[1721874787836,5.7786,173.05,172.98,46.33729506]
[1721874788237,5.7777,173.08,172.98,1.33729506]
[1721874788441,1.44499276,173.11,172.99,1.15599421]
[1721874788658,35.77,173.12,173.0,1.33714046]
[1721874788861,1.4447633,173.11,173.0,1.33714046]
[1721874789059,53.12,173.12,173.0,1.33714046]
[1721874789266,1.44486094,173.11,173.0,1.33714046]
[1721874789447,5.7791,173.04,173.0,1.33714046]
[1721874789650,17.35,173.1,173.0,1.33714046]
[1721874789967,50.2113,173.12,173.0,1.33714046]
[1721874789968,1.44502811,173.09,173.0,1.33714046]
[1721874790561,17.35,173.07,173.0,1.33714046]
[1721874790741,53.12,173.04,172.91,6.5954]
[1721874790947,53.12,173.04,172.86,1.15637848]
[1721874790948,53.12,173.0,172.86,6.5954]
[1721874791169,5.7826,172.94,172.86,7.93362342]
[1721874791368,1.44619156,172.93,172.86,1.33822342]
[1721874791775,5.7833,172.91,172.86,1.33822342]
[1721874792075,1.44632544,172.9,172.79,0.7715902]
[1721874792245,5.7847,172.87,172.79,0.7715902]
[1721874792444,1.44666199,172.86,172.79,0.7715902]
[1721874792745,7.23215171,172.85,172.79,0.7715902]
[1721874792964,5.7861,172.83,172.79,0.7715902]
[1721874793167,5.7867,172.81,172.79,0.7715902]
[1721874793385,1.44706277,172.81,172.79,0.7715902]
[1721874793548,37.35,172.8,172.79,0.7715902]
[1721874793875,5.7892,172.74,172.62,24.52130614]
[1721874794046,1.44771516,172.73,172.63,1.34000637]
[1721874794370,5.7894,172.73,172.63,1.34000637]
[1721874794573,5.7888,172.75,172.63,1.34000637]
[1721874794779,1.44771623,172.74,172.63,1.34000637]
[1721874794949,1.44771715,172.73,172.63,1.34000637]
[1721874795369,5.7872,172.8,172.64,1.1581949]
[1721874795544,1.44742256,172.79,172.65,2.4977892]
[1721874795752,1.44742256,172.79,172.66,1.33977355]
[1721874795976,7.23482256,172.79,172.66,1.33977355]
[1721874796872,1.44742256,172.79,172.66,1.33977355]
[1721874797055,1.44643039,172.83,172.67,1.15714431]
[1721874797264,6.4658,172.92,172.68,1.33961837]
[1721874797265,5.7868,172.81,172.68,1.33961837]
[1721874797462,1.44729937,172.8,172.68,1.33961837]
[1721874797774,1.44733089,172.79,172.68,1.33961837]
[1721874798077,5.7874,172.79,172.68,1.33961837]
[1721874798375,1.44757612,172.78,172.68,1.33961837]
[1721874798951,7.23547612,172.78,172.68,1.33961837]
[1721874799181,1.44757612,172.78,172.68,1.33961837]
[1721874799350,1.44734699,172.8,172.68,1.33961837]
[1721874799653,1.44734699,172.79,172.68,1.33961837]
[1721874799854,7.4740839,172.84,172.68,2.49749607]
[1721874800170,1.44704389,172.83,172.68,2.49749607]
[1721874800386,7.23343838,172.82,172.68,1.33961837]
[1721874800587,1.44703838,172.82,172.68,1.33961837]
[1721874800749,1.44703838,172.82,172.68,2.49732008]
[1721874801673,5.7855,172.85,172.68,67.49732008]
[1721874801872,7.23241979,172.85,172.68,67.49732008]
[1721874802076,20.0,172.84,172.68,67.49732008]
[1721874802283,1.44705134,172.83,172.68,66.33961837]
[1721874802479,5.7877,172.78,172.68,1.33961837]
[1721874802690,5.7884,172.76,172.68,1.33961837]
[1721874802991,7.23594275,172.76,172.68,1.33961837]
[1721874803286,20.0,172.75,172.58,1.15813371]
[1721874803465,1.44798083,172.74,172.63,1.34000637]
[1721874803678,1.4479606,172.78,172.64,1.15836848]
[1721874803858,1.4479606,172.78,172.65,1.33985115]
[1721874804190,21.4479606,172.78,172.65,1.33985115]
[1721874804369,5.7882,172.77,172.65,1.33985115]
[1721874804694,385.0,172.79,172.65,2.49784985]
[1721874804871,390.7873,172.79,172.65,2.49784985]
[1721874805060,385.0,172.79,172.65,2.49784985]
[1721874805260,5.7862,172.83,172.65,22.49784985]
[1721874805476,1.44719852,172.82,172.66,45.0]
[1721874805687,5.787,172.8,172.67,21.33969595]
[1721874805890,5.7882,172.77,172.68,45.0]
[1721874806093,1.44750968,172.77,172.68,46.33961837]
[1721874806269,14.4663,172.82,172.68,46.33961837]
[1721874806270,7.23590968,172.76,172.68,46.33961837]
[1721874806468,1.44759101,172.75,172.68,46.33961837]
[1721874806683,1.44734079,172.78,172.69,1.3395408]
[1721874807393,5.7894,172.73,172.69,1.3395408]
[1721874807571,1.44782983,172.72,172.62,23.3631902]
[1721874807768,1.4478423,172.76,172.62,23.3631902]
[1721874808084,1.4478423,172.76,172.63,1.15827384]
[1721874808290,385.0,172.77,172.64,1.33992876]
[1721874808585,385.0,172.77,172.65,1.15804467]
[1721874808784,385.0,172.77,172.66,1.33977355]
[1721874809480,385.0,172.77,172.67,1.15811241]
[1721874809677,385.0,172.77,172.68,1.33961837]
[1721874810195,646.81030625,172.85,172.68,1.33961837]
[1721874810488,5.7864,172.82,172.68,2.49729984]
[1721874810685,5.786,172.83,172.68,2.49729984]
[1721874810891,5.786,172.83,172.68,22.49729984]
[1721874811083,5.786,172.83,172.69,45.0]